bitfinex-derivatives/quotes_BTCF0:USTF0_20250902
["timestamp","ask_amount","ask_price","bid_price","bid_amount"]
[1756790106491,0.004,110250.0,110240.0,1.96683847]
[1756790106689,0.004,110250.0,110240.0,2.23253847]
[1756790106886,0.59564484,110290.0,110280.0,0.08462]
[1756790107079,0.97564484,110290.0,110280.0,0.31946484]
[1756790107482,0.61484484,110290.0,110280.0,0.31946484]
[1756790108489,0.38,110290.0,110280.0,0.31946484]
[1756790108788,0.38,110290.0,110280.0,1.31395758]
[1756790108985,0.08,110290.0,110280.0,1.33024022]
[1756790109185,0.085,110290.0,110280.0,1.33124022]
[1756790109388,0.085,110290.0,110280.0,1.60678908]
[1756790109586,0.005,110290.0,110280.0,1.58124022]
[1756790109781,0.008,110290.0,110280.0,1.58124022]
[1756790109984,0.008,110290.0,110280.0,2.41508022]
[1756790110379,0.003,110290.0,110280.0,2.41408022]
[1756790110581,0.003,110290.0,110280.0,2.52408022]
[1756790110789,0.005,110290.0,110280.0,2.52408022]
[1756790111394,0.005,110290.0,110280.0,2.50768044]
[1756790111795,0.005,110290.0,110280.0,1.67384044]
[1756790112094,0.005,110290.0,110280.0,2.52404022]
[1756790112295,0.005,110290.0,110280.0,2.50762434]
[1756790113196,0.005,110290.0,110280.0,2.52404022]
[1756790114198,0.005,110290.0,110280.0,2.51392022]
[1756790114397,0.005,110290.0,110280.0,2.44878968]
[1756790114693,0.005,110290.0,110280.0,1.61510968]
[1756790114992,0.005,110290.0,110280.0,2.46878968]
[1756790115394,0.005,110290.0,110280.0,2.51748122]
[1756790115789,0.005,110290.0,110280.0,2.47752122]
[1756790117302,0.005,110290.0,110280.0,2.52752122]
[1756790119793,0.005,110290.0,110280.0,1.66380122]
[1756790120103,1.39548968,110290.0,110270.0,0.07175154]
[1756790120291,0.23484484,110280.0,110270.0,0.96691154]
[1756790120494,0.25484484,110280.0,110270.0,1.20175638]
[1756790121293,0.25484484,110280.0,110270.0,0.36815638]
[1756790121598,0.02,110280.0,110270.0,0.96691154]
[1756790122100,0.25462921,110280.0,110270.0,0.96691154]
[1756790122505,0.25662921,110280.0,110270.0,0.96691154]
[1756790122801,0.25662921,110280.0,110270.0,0.91822]
[1756790123000,0.024,110280.0,110270.0,0.91822]
[1756790123201,0.024,110280.0,110270.0,0.96691154]
[1756790123403,0.84862921,110280.0,110270.0,0.96691154]
[1756790123603,1.20942921,110280.0,110270.0,0.08462]
[1756790123801,1.46245851,110280.0,110260.0,0.09654154]
[1756790124006,0.59542921,110270.0,110260.0,0.04785]
[1756790124202,1.20542921,110270.0,110260.0,0.04785]
[1756790125010,1.20542921,110270.0,110260.0,0.08462]
[1756790125201,1.15542921,110270.0,110260.0,0.08462]
[1756790125708,1.15642921,110270.0,110260.0,0.08462]
[1756790126208,0.86642921,110270.0,110260.0,0.08462]
[1756790126507,1.17742921,110270.0,110260.0,0.08462]
[1756790127010,1.15742921,110270.0,110260.0,0.08462]
[1756790127410,0.84742921,110270.0,110260.0,0.04785]
[1756790127709,1.21742921,110270.0,110260.0,0.04785]
[1756790128011,1.21742921,110270.0,110260.0,0.08462]
[1756790131211,0.9828,110270.0,110260.0,0.08462]
[1756790131512,1.21742921,110270.0,110260.0,0.08462]
[1756790132610,2.05106921,110270.0,110250.0,0.06852007]
[1756790132913,0.59542921,110260.0,110250.0,0.11637007]
[1756790133118,0.61542921,110260.0,110250.0,0.15314007]
[1756790134209,0.59542921,110260.0,110250.0,0.16726007]
[1756790134408,0.3608,110260.0,110250.0,0.16726007]
[1756790134615,0.59542921,110260.0,110250.0,0.16726007]
[1756790135312,0.93542921,110260.0,110250.0,0.16826007]
[1756790135510,0.94430762,110260.0,110250.0,0.11737007]
[1756790136107,0.94430762,110260.0,110250.0,0.11637007]
[1756790136409,0.94430762,110260.0,110250.0,0.06867853]
[1756790137015,0.62430762,110260.0,110250.0,0.06867853]
[1756790137315,0.94430762,110260.0,110250.0,0.10259853]
[1756790137516,0.94530762,110260.0,110250.0,0.10259853]
[1756790137817,0.3618,110260.0,110250.0,0.11713853]
[1756790138113,0.3618,110260.0,110250.0,0.16583007]
[1756790138315,0.3628,110260.0,110250.0,0.16483007]
[1756790138916,0.3828,110260.0,110250.0,0.16483007]
[1756790139419,0.3818,110260.0,110250.0,0.16583007]
[1756790139813,0.61642921,110260.0,110250.0,0.16583007]
[1756790140017,0.61542921,110260.0,110250.0,0.16583007]
[1756790140721,0.91542921,110260.0,110250.0,0.16583007]
[1756790141219,0.91542921,110260.0,110250.0,0.11713853]
[1756790142412,0.6808,110260.0,110250.0,0.11713853]
[1756790142613,0.61542921,110260.0,110250.0,0.11713853]
[1756790142815,0.59542921,110260.0,110250.0,0.11713853]
[1756790143014,0.90542921,110260.0,110250.0,0.16488872]
[1756790143214,0.61542921,110260.0,110250.0,0.16588872]
[1756790144721,0.3808,110260.0,110250.0,0.16588872]
[1756790144921,0.61542921,110260.0,110250.0,0.16588872]
[1756790145122,0.61542921,110260.0,110250.0,0.16488872]
[1756790145123,0.3808,110260.0,110250.0,0.16488872]
[1756790145422,0.61542921,110260.0,110250.0,0.16588872]
[1756790148224,0.61542921,110260.0,110250.0,0.11713853]
[1756790149220,0.61542921,110260.0,110250.0,0.18213878]
[1756790149617,0.59542921,110260.0,110250.0,0.13367878]
[1756790149821,0.90542921,110260.0,110250.0,0.13367878]
[1756790150228,0.59542921,110260.0,110250.0,0.13367878]
[1756790150423,0.90542921,110260.0,110250.0,0.13367878]
[1756790150625,0.90542921,110260.0,110250.0,0.001]
[1756790150626,0.86542921,110260.0,110250.0,0.001]
[1756790150831,1.15542921,110260.0,110250.0,0.001]
[1756790152028,1.15642921,110260.0,110240.0,0.04889226]
[1756790152224,1.66373842,110250.0,110240.0,0.04889226]
[1756790152425,2.00373842,110250.0,110240.0,0.04889226]
[1756790152626,2.25373842,110250.0,110240.0,0.04889226]
[1756790153322,2.25473842,110250.0,110230.0,0.04889226]
[1756790153522,0.59542921,110240.0,110230.0,0.04889226]
[1756790153821,0.95542921,110240.0,110230.0,0.04889226]
[1756790155427,0.95642921,110240.0,110230.0,0.04889226]
[1756790156419,0.61742921,110240.0,110230.0,0.04889226]
[1756790156630,0.97742921,110240.0,110230.0,0.04889226]
[1756790156824,0.61742921,110240.0,110230.0,0.04889226]
[1756790157025,0.91742921,110240.0,110230.0,0.04889226]
[1756790158036,0.6828,110240.0,110230.0,0.04889226]
[1756790158336,0.91742921,110240.0,110230.0,0.09413226]
[1756790158634,0.91642921,110240.0,110230.0,0.09413226]
[1756790158836,0.91742921,110240.0,110230.0,0.09413226]
[1756790159323,1.75114921,110240.0,110230.0,0.09413226]
[1756790160430,1.75114921,110240.0,110230.0,0.12805226]
[1756790162237,0.91742921,110240.0,110230.0,0.12805226]
[1756790162531,0.61742921,110240.0,110230.0,0.12805226]
[1756790162736,1.19652,110240.0,110230.0,0.12805226]
[1756790163036,0.3628,110240.0,110230.0,0.12805226]
[1756790163237,0.92742921,110240.0,110230.0,0.12805226]
[1756790163736,0.61742921,110240.0,110230.0,0.12805226]
[1756790164836,1.45118921,110240.0,110230.0,0.12805226]
[1756790165035,1.45018921,110240.0,110230.0,0.12905226]
[1756790165433,1.44918921,110240.0,110230.0,0.12905226]
[1756790166732,1.19456,110240.0,110230.0,0.12905226]
[1756790166937,0.3608,110240.0,110230.0,0.61368147]
[1756790167134,1.42914921,110250.0,110230.0,0.53086921]
[1756790167340,1.77914921,110250.0,110240.0,0.13242531]
[1756790168635,1.78014921,110250.0,110240.0,0.13242531]
[1756790170336,1.78114921,110250.0,110240.0,0.13242531]
[1756790170843,1.54652,110250.0,110240.0,0.13242531]
[1756790171042,0.3928,110250.0,110240.0,0.13242531]
[1756790171243,1.79114921,110250.0,110240.0,0.13242531]
[1756790171742,1.78914921,110250.0,110240.0,0.13342531]
[1756790172642,1.78914921,110250.0,110240.0,0.13242531]
[1756790172843,1.79014921,110250.0,110240.0,0.13242531]
[1756790175446,1.79114921,110250.0,110240.0,0.13242531]
[1756790175648,1.55652,110250.0,110240.0,0.13242531]
[1756790175847,1.79114921,110250.0,110240.0,0.09503531]
[1756790176233,1.79114921,110250.0,110240.0,0.04886531]
[1756790176956,2.27577842,110250.0,110240.0,0.04886531]
[1756790177149,2.27577842,110250.0,110230.0,0.04886531]
[1756790177350,0.59542921,110240.0,110220.0,0.13168951]
[1756790177659,0.23462921,110230.0,110220.0,0.16907951]
[1756790177856,0.02,110230.0,110220.0,0.16907951]
[1756790178158,1.42906921,110240.0,110220.0,0.16907951]
[1756790178358,1.77906921,110240.0,110230.0,0.06600025]
[1756790179059,2.02906921,110240.0,110230.0,0.04893789]
[1756790180052,2.03006921,110240.0,110230.0,0.04893789]
[1756790180248,2.03106921,110240.0,110220.0,0.13168951]
[1756790180455,0.23462921,110230.0,110220.0,0.16907951]
[1756790180656,0.25462921,110230.0,110220.0,0.16907951]
[1756790181051,0.25462921,110230.0,110220.0,0.13168951]
[1756790181457,0.25462921,110230.0,110220.0,0.10407926]
[1756790181655,0.25462921,110230.0,110220.0,0.10507926]
[1756790183166,0.59462921,110230.0,110220.0,0.06768926]
[1756790183357,0.25462921,110230.0,110220.0,0.14893957]
[1756790183558,0.25462921,110230.0,110220.0,0.18632957]
[1756790183559,0.25486906,110230.0,110220.0,0.18632957]
[1756790184266,0.25486906,110230.0,110220.0,0.10507926]
[1756790185066,0.25486906,110230.0,110220.0,0.18632957]
[1756790185266,0.25486906,110230.0,110220.0,0.10507926]
[1756790185464,0.23486906,110230.0,110220.0,0.10507926]
[1756790185667,1.19053812,110230.0,110220.0,0.08680655]
[1756790185853,0.95566906,110230.0,110220.0,0.08680655]
[1756790186058,1.19053812,110230.0,110220.0,0.08680655]
[1756790186265,0.95566906,110230.0,110220.0,0.08680655]
[1756790188269,0.95566906,110230.0,110220.0,0.10933655]
[1756790189160,0.95566906,110230.0,110220.0,0.04404926]
[1756790189361,0.95566906,110230.0,110220.0,0.06768926]
[1756790190371,0.95566906,110230.0,110220.0,0.02151926]
[1756790190572,0.95566906,110230.0,110220.0,0.04404926]
[1756790190772,0.95566906,110230.0,110220.0,0.06768926]
[1756790191071,0.95566906,110230.0,110220.0,0.04404926]
[1756790191270,0.95566906,110230.0,110220.0,0.02151926]
[1756790191783,1.19053812,110230.0,110220.0,0.02151926]
[1756790192159,1.19053812,110230.0,110220.0,0.0704515]
[1756790193569,1.19053812,110230.0,110220.0,0.04993224]
[1756790193773,1.44053812,110230.0,110220.0,0.04993224]
[1756790194074,1.44053812,110230.0,110220.0,0.001]
[1756790195073,2.29344108,110230.0,110220.0,0.001]
[1756790198377,2.52831014,110230.0,110220.0,0.001]
[1756790203173,2.50892718,110230.0,110220.0,0.001]
[1756790203379,2.52829545,110230.0,110220.0,0.001]
[1756790205773,1.69477545,110230.0,110220.0,0.001]
[1756790205974,2.29342639,110230.0,110220.0,0.001]
[1756790206979,2.29338639,110230.0,110220.0,0.001]
[1756790207373,2.29342639,110230.0,110220.0,0.001]
[1756790213384,1.80851733,110230.0,110220.0,0.08629]
[1756790213589,1.78910906,110230.0,110220.0,0.33629]
[1756790213785,2.02397812,110230.0,110220.0,0.33629]
[1756790213982,2.02397812,110230.0,110220.0,0.38522224]
[1756790219184,2.02397812,110230.0,110220.0,0.13522224]
[1756790226493,0.95566906,110230.0,110220.0,0.13522224]
[1756790226698,1.554,110230.0,110220.0,0.13522224]
[1756790226895,1.78886906,110230.0,110220.0,0.13522224]
[1756790229194,0.95566906,110230.0,110220.0,0.3700913]
[1756790229397,1.42802906,110230.0,110220.0,0.3700913]
[1756790229597,1.19802906,110230.0,110220.0,0.6200913]
[1756790229791,0.13,110230.0,110220.0,0.87131541]
[1756790230103,1.19802906,110230.0,110220.0,0.63644635]
[1756790230705,0.36486906,110230.0,110220.0,0.63644635]
[1756790230902,1.19802906,110230.0,110220.0,0.63644635]
[1756790233194,0.96316,110230.0,110220.0,0.63644635]
[1756790233488,0.13,110230.0,110220.0,1.23211541]
[1756790233694,0.78789097,110240.0,110230.0,0.08201]
[1756790233896,0.07857097,110240.0,110230.0,0.38206013]
[1756790234493,0.07857097,110240.0,110230.0,0.74286013]
[1756790234694,0.07957097,110240.0,110230.0,0.74286013]
[1756790234895,0.02057097,110240.0,110230.0,0.74286013]
[1756790235695,0.02057097,110240.0,110230.0,0.99286013]
[1756790235897,0.01957097,110240.0,110230.0,0.99586013]
[1756790236500,0.01857097,110240.0,110230.0,0.99786013]
[1756790237605,0.01857097,110240.0,110230.0,0.99686013]
[1756790238203,0.01857097,110240.0,110230.0,0.99786013]
[1756790238990,0.01857097,110240.0,110230.0,0.76299107]
[1756790239311,0.01857097,110240.0,110230.0,0.99786013]
[1756790239494,2.51294906,110260.0,110250.0,0.01489]
[1756790239798,3.67586906,110260.0,110250.0,0.14572246]
[1756790239999,3.67586906,110260.0,110250.0,0.38059152]
[1756790241612,1.75858906,110260.0,110250.0,0.38059152]
[1756790241909,1.75858906,110260.0,110250.0,0.14572246]
[1756790242112,1.83116659,110260.0,110250.0,0.14572246]
[1756790243308,1.83116659,110260.0,110250.0,0.33176906]
[1756790243509,1.83101948,110260.0,110250.0,0.0969]
[1756790243905,1.59629753,110260.0,110250.0,0.0969]
[1756790244102,1.83101948,110260.0,110250.0,0.0969]
[1756790245107,1.59629753,110260.0,110250.0,0.0969]
[1756790253316,1.59593753,110260.0,110250.0,0.38044441]
[1756790253511,0.76337753,110260.0,110250.0,0.38044441]
[1756790253714,0.16257753,110260.0,110250.0,0.74124441]
[1756790254421,0.16257753,110260.0,110250.0,0.69242195]
[1756790254719,0.07257753,110260.0,110250.0,0.69242195]
[1756790254909,1.22066071,110270.0,110260.0,0.08201]
[1756790255109,1.56066071,110270.0,110260.0,0.13080947]
[1756790256216,1.79638266,110270.0,110260.0,0.13080947]
[1756790256418,1.86859818,110270.0,110260.0,0.13080947]
[1756790256719,1.87059818,110270.0,110260.0,0.13080947]
[1756790259322,1.63587623,110270.0,110260.0,0.13080947]
[1756790260109,1.63587623,110270.0,110260.0,0.09607947]
[1756790260320,1.87059818,110270.0,110260.0,0.07250947]
[1756790260521,1.87059818,110270.0,110260.0,0.04879947]
[1756790262723,1.63587623,110270.0,110260.0,0.04879947]
[1756790262922,1.87059818,110270.0,110260.0,0.04879947]
[1756790264117,1.87059818,110270.0,110260.0,0.07174947]
[1756790265118,1.87059818,110270.0,110260.0,0.04879947]
[1756790266926,1.50979818,110270.0,110260.0,0.04879947]
[1756790267127,1.87059818,110270.0,110260.0,0.04879947]
[1756790268026,1.87059818,110270.0,110260.0,0.07174947]
[1756790270226,1.89006695,110270.0,110260.0,0.07174947]
[1756790272526,1.87156027,110270.0,110260.0,0.07174947]
[1756790274933,1.51076027,110270.0,110260.0,0.07174947]
[1756790275232,1.87156027,110270.0,110260.0,0.07174947]
[1756790276133,1.51076027,110270.0,110260.0,0.07174947]
[1756790276334,1.87156027,110270.0,110260.0,0.04879947]
[1756790277338,1.87156027,110270.0,110260.0,0.07174947]
[1756790277638,1.8520915,110270.0,110260.0,0.07174947]
[1756790278140,1.87054881,110270.0,110260.0,0.04879947]
[1756790279343,1.87054881,110270.0,110250.0,0.08813107]
[1756790279533,0.23472195,110260.0,110250.0,0.06518107]
[1756790279733,0.56472195,110260.0,110250.0,0.06518107]
[1756790280443,0.56472195,110260.0,110250.0,0.08813107]
[1756790280842,0.92552195,110260.0,110250.0,0.08813107]
[1756790281242,0.92552195,110260.0,110250.0,0.11145107]
[1756790282743,0.92552195,110260.0,110250.0,0.06518107]
[1756790283741,0.6908,110260.0,110250.0,0.08813107]
[1756790283942,0.92552195,110260.0,110250.0,0.08813107]
[1756790284448,0.92552195,110260.0,110250.0,0.04627]
[1756790285046,0.92552195,110260.0,110250.0,0.08075]
[1756790286249,0.92552195,110260.0,110250.0,0.04627]
[1756790288945,0.92552195,110260.0,110250.0,0.02295]
[1756790289149,0.92552195,110260.0,110240.0,0.50659107]
[1756790290144,1.42748195,110250.0,110240.0,0.08782107]
[1756790290344,1.78748195,110250.0,110240.0,0.06527973]
[1756790290951,2.0222039,110250.0,110240.0,0.04996192]
[1756790291547,2.0222039,110250.0,110240.0,0.04896192]
[1756790292051,1.78748195,110250.0,110240.0,0.04996192]
[1756790292251,0.95752195,110250.0,110240.0,0.07260192]
[1756790292450,1.78948195,110250.0,110240.0,0.07260192]
[1756790292648,1.78948195,110250.0,110240.0,0.07160192]
[1756790292850,1.79048195,110250.0,110240.0,0.04896192]
[1756790293747,1.55576,110250.0,110240.0,0.04896192]
[1756790293947,1.79048195,110250.0,110240.0,0.07160192]
[1756790294248,1.78848195,110250.0,110240.0,0.07160192]
[1756790294750,1.78748195,110250.0,110240.0,0.09512192]
[1756790294952,0.95192,110250.0,110240.0,0.36429387]
[1756790295246,0.46030686,110270.0,110260.0,0.03445]
[1756790295444,1.65222686,110270.0,110260.0,0.12950039]
[1756790297952,1.65522686,110270.0,110260.0,0.12950039]
[1756790298352,1.88994881,110270.0,110260.0,0.12950039]
[1756790299155,1.88894881,110270.0,110260.0,0.12950039]
[1756790299654,1.65422686,110270.0,110260.0,0.12950039]
[1756790300249,1.65222686,110270.0,110260.0,0.12950039]
[1756790300650,1.65218686,110270.0,110260.0,0.12950039]
[1756790302255,1.65218686,110270.0,110260.0,0.09505039]
[1756790302452,1.88690881,110270.0,110260.0,0.04889039]
[1756790303257,1.65218686,110270.0,110260.0,0.04889039]
[1756790303447,1.88690881,110270.0,110260.0,0.09505039]
[1756790304054,1.88890881,110270.0,110260.0,0.09505039]
[1756790304656,1.65318686,110270.0,110260.0,0.09505039]
[1756790304856,1.88790881,110270.0,110260.0,0.09505039]
[1756790305358,1.88690881,110270.0,110260.0,0.09505039]
[1756790305560,1.88688135,110270.0,110260.0,0.09505039]
[1756790308360,1.65218686,110270.0,110260.0,0.09505039]
[1756790308554,1.88688135,110270.0,110260.0,0.09505039]
[1756790312067,1.52608135,110270.0,110260.0,0.09505039]
[1756790312265,1.65218686,110270.0,110260.0,0.09505039]
[1756790312562,1.88688135,110270.0,110260.0,0.09505039]
[1756790314371,1.88688135,110270.0,110260.0,0.12950039]
[1756790314372,1.88668135,110270.0,110260.0,0.12950039]
[1756790314574,1.88668135,110270.0,110260.0,0.36419488]
[1756790315072,1.05500135,110270.0,110260.0,0.36419488]
[1756790315271,1.88664135,110270.0,110260.0,0.36419488]
[1756790316375,1.65194686,110270.0,110260.0,0.36419488]
[1756790316571,1.88664135,110270.0,110260.0,0.32974488]
[1756790318967,0.82030686,110270.0,110260.0,0.60154937]
[1756790319272,1.65190686,110270.0,110260.0,0.86793871]
[1756790319672,0.38729134,110270.0,110260.0,0.86793871]
[1756790320978,0.38729134,110270.0,110260.0,0.86893871]
[1756790321277,0.38729134,110270.0,110260.0,0.86993871]
[1756790323071,0.38729134,110270.0,110260.0,1.23073871]
[1756790324777,0.38729134,110270.0,110260.0,0.76134973]
[1756790324982,0.38729134,110270.0,110260.0,1.23073871]
[1756790326577,0.38729134,110270.0,110260.0,0.76134973]
[1756790326877,0.38729134,110270.0,110260.0,1.23073871]
[1756790332991,0.38729134,110270.0,110260.0,0.86993871]
[1756790333286,0.38729134,110270.0,110260.0,1.23073871]
[1756790337187,0.37845731,110270.0,110260.0,0.98073871]
[1756790338495,0.37845731,110270.0,110260.0,1.81197871]
[1756790338889,0.6131518,110270.0,110260.0,1.81197871]
[1756790339692,0.37845731,110270.0,110260.0,1.81197871]
[1756790339879,0.37845731,110270.0,110260.0,1.74669898]
[1756790340386,0.01845731,110270.0,110260.0,2.9674361]
[1756790340584,0.3792549,110290.0,110260.0,2.90219347]
[1756790340784,0.3384549,110290.0,110280.0,0.55521898]
[1756790340992,0.3384549,110290.0,110280.0,1.451654]
[1756790341287,0.0089648,110300.0,110280.0,1.73054439]
[1756790341493,0.32,110300.0,110290.0,0.38573169]
[1756790342185,0.32,110300.0,110290.0,0.32052449]
[1756790342884,0.323,110300.0,110290.0,0.32052449]
[1756790343295,0.33215539,110300.0,110290.0,0.36938031]
[1756790344293,0.33415539,110300.0,110290.0,0.36938031]
[1756790345293,0.33415539,110300.0,110290.0,1.20046031]
[1756790346581,0.33415539,110300.0,110290.0,1.56126031]
[1756790347489,0.33415539,110300.0,110290.0,0.73018031]
[1756790347794,0.56884988,110300.0,110290.0,0.73018031]
[1756790348594,0.33415539,110300.0,110290.0,0.73018031]
[1756790348790,0.56884988,110300.0,110290.0,0.73018031]
[1756790349097,0.33415539,110300.0,110290.0,0.73018031]
[1756790349697,0.33415539,110300.0,110290.0,0.49548582]
[1756790349892,0.56884988,110300.0,110290.0,0.73018031]
[1756790350096,0.56884988,110300.0,110290.0,1.56110031]
[1756790350299,0.33415539,110300.0,110290.0,1.56110031]
[1756790351699,0.56884988,110300.0,110290.0,1.56110031]
[1756790353198,0.33415539,110300.0,110290.0,1.56110031]
[1756790353999,0.33415539,110300.0,110290.0,1.32640582]
[1756790354200,0.33415539,110300.0,110290.0,1.56110031]
[1756790356008,0.325,110300.0,110290.0,1.56110031]
[1756790356302,0.325,110300.0,110290.0,1.74693898]
[1756790357096,0.325,110300.0,110290.0,1.99693898]
[1756790357408,0.005,110300.0,110290.0,1.99693898]
[1756790358100,0.005,110300.0,110290.0,2.06214618]
[1756790358307,0.005,110300.0,110290.0,2.32693898]
[1756790358508,0.005,110300.0,110290.0,2.39214618]
[1756790359303,0.005,110300.0,110290.0,2.48281228]
[1756790359707,0.005,110300.0,110290.0,2.49199543]
[1756790359905,0.005,110300.0,110290.0,2.07108933]
[1756790360811,0.005,110300.0,110290.0,2.18108933]
[1756790361210,0.005,110300.0,110290.0,2.54188933]
[1756790361414,0.005,110300.0,110290.0,2.63255563]
[1756790363815,0.005,110300.0,110290.0,2.89825563]
[1756790365512,0.005,110300.0,110290.0,2.6633141]
[1756790368122,0.005,110300.0,110290.0,1.7419678]
[1756790368320,0.005,110300.0,110290.0,2.5072406]
[1756790368717,0.005,110300.0,110290.0,1.6767606]
[1756790369024,0.005,110300.0,110290.0,2.5072406]
[1756790372224,0.005,110300.0,110290.0,1.6767606]
[1756790372424,0.005,110300.0,110290.0,2.5072006]
[1756790373028,0.005,110300.0,110290.0,1.15187745]
[1756790373320,0.005,110300.0,110290.0,1.04187745]
[1756790373527,0.005,110300.0,110290.0,1.57667578]
[1756790373827,0.005,110300.0,110290.0,1.51147745]
[1756790377427,0.005,110300.0,110290.0,1.90272776]
[1756790377628,0.005,110300.0,110290.0,1.59272776]
[1756790378027,0.005,110300.0,110290.0,1.94272776]
[1756790378324,0.005,110300.0,110290.0,1.86147745]
[1756790379119,0.005,110300.0,110290.0,1.95214365]
[1756790379325,0.005,110300.0,110290.0,2.39419396]
[1756790379522,0.005,110300.0,110290.0,2.31294365]
[1756790380934,0.005,110300.0,110290.0,2.31394365]
[1756790380935,0.003,110300.0,110290.0,2.31394365]
[1756790381534,0.45317243,110330.0,110290.0,2.27683365]
[1756790381738,0.80317243,110330.0,110320.0,0.36988119]
[1756790381926,0.80317243,110330.0,110320.0,1.20012119]
[1756790382824,0.44237243,110330.0,110320.0,1.20012119]
[1756790384432,0.44537243,110330.0,110320.0,1.20012119]
[1756790385135,0.44737243,110330.0,110320.0,1.20012119]
[1756790385936,0.44737243,110330.0,110320.0,0.36988119]
[1756790387436,0.44737243,110330.0,110320.0,0.13543374]
[1756790391039,0.44537243,110330.0,110320.0,0.13543374]
[1756790391239,0.44237243,110330.0,110320.0,0.13743374]
[1756790392840,0.44237243,110330.0,110320.0,0.13643374]
[1756790393339,0.44237243,110330.0,110320.0,0.08754]
[1756790393840,0.44237243,110330.0,110320.0,0.08654]
[1756790394541,0.44237243,110330.0,110320.0,0.08854]
[1756790395545,0.44237243,110330.0,110320.0,0.08754]
[1756790395746,0.44237243,110330.0,110320.0,0.08854]
[1756790397543,0.44237243,110330.0,110320.0,0.32298745]
[1756790400247,0.44237243,110330.0,110320.0,0.32198745]
[1756790400432,0.36858665,110330.0,110320.0,0.57298745]
[1756790400743,0.36983734,110350.0,110320.0,0.89630745]
[1756790400936,0.69983734,110350.0,110340.0,0.04885696]
[1756790401137,0.69983734,110350.0,110340.0,0.13539696]
[1756790402652,0.70183734,110350.0,110340.0,0.13539696]
[1756790403148,0.77340616,110350.0,110340.0,0.13539696]
[1756790403350,0.77440616,110350.0,110340.0,0.13539696]
[1756790406241,1.60416616,110350.0,110340.0,0.13539696]
[1756790414057,1.60416616,110350.0,110340.0,0.04885696]
[1756790414058,1.83861361,110350.0,110340.0,0.04885696]
[1756790414754,2.32306106,110350.0,110340.0,0.04885696]
[1756790415061,2.10822289,110350.0,110330.0,0.04885696]
[1756790415260,0.61335742,110340.0,110330.0,0.04885696]
[1756790415560,0.92335742,110340.0,110330.0,0.04885696]
[1756790415962,1.15780487,110340.0,110330.0,0.04885696]
[1756790417664,1.15880487,110340.0,110330.0,0.04885696]
[1756790418678,1.16080487,110340.0,110330.0,0.04885696]
[1756790419365,1.43041657,110340.0,110320.0,0.04885696]
[1756790419663,1.6592149,110330.0,110300.0,0.08502932]
[1756790419854,0.8296949,110310.0,110300.0,0.0198867]
[1756790420167,1.77311031,110310.0,110290.0,0.14661262]
[1756790420369,0.23444745,110300.0,110290.0,0.14661262]
[1756790420560,0.55444745,110300.0,110290.0,0.14661262]
[1756790421669,0.56346034,110300.0,110290.0,0.14661262]
[1756790422166,0.92426034,110300.0,110280.0,0.02043541]
[1756790422360,1.42476745,110290.0,110260.0,1.30961247]
[1756790422560,0.23044745,110270.0,110260.0,0.52728247]
[1756790422861,1.78476745,110270.0,110260.0,0.06705985]
[1756790423666,0.95524745,110270.0,110260.0,0.06705985]
[1756790423865,1.78476745,110270.0,110260.0,0.10133985]
[1756790424060,1.44476745,110270.0,110260.0,0.10133985]
[1756790424367,1.75476745,110270.0,110260.0,0.10133985]
[1756790424768,1.75676745,110270.0,110260.0,0.10133985]
[1756790425268,1.75776745,110270.0,110260.0,0.10133985]
[1756790425468,0.3638,110270.0,110260.0,0.10133985]
[1756790425971,0.91824745,110270.0,110260.0,0.10133985]
[1756790426170,0.91724745,110270.0,110260.0,0.10133985]
[1756790426672,0.002,110270.0,110260.0,0.3357873]
[1756790426972,0.003,110270.0,110260.0,0.3357873]
[1756790427167,0.23744745,110270.0,110260.0,0.10133985]
[1756790427371,0.56744745,110270.0,110260.0,0.10133985]
[1756790427673,0.56768658,110270.0,110260.0,0.10133985]
[1756790428563,0.56668658,110270.0,110260.0,0.10133985]
[1756790429072,0.25568658,110270.0,110260.0,0.33702643]
[1756790429871,0.25568658,110270.0,110260.0,0.33602643]
[1756790431874,0.23568658,110270.0,110260.0,0.33602643]
[1756790432877,0.25568658,110270.0,110260.0,0.33602643]
[1756790433675,0.25568658,110270.0,110260.0,0.10133985]
[1756790433872,0.25568658,110270.0,110260.0,0.33602643]
[1756790434879,0.021,110270.0,110260.0,0.33602643]
[1756790435178,0.25568658,110270.0,110260.0,0.33602643]
[1756790435580,0.25568658,110270.0,110260.0,0.10133985]
[1756790436082,0.25568658,110270.0,110260.0,0.33602643]
[1756790436283,0.021,110270.0,110260.0,0.33602643]
[1756790436488,0.25568658,110270.0,110260.0,0.33602643]
[1756790437293,0.021,110270.0,110260.0,0.33602643]
[1756790437474,0.58568658,110270.0,110260.0,0.33602643]
[1756790437790,0.25568658,110270.0,110260.0,0.33602643]
[1756790439387,0.23568658,110270.0,110260.0,0.33602643]
[1756790439578,0.25568658,110270.0,110260.0,0.33602643]
[1756790441878,0.25568658,110270.0,110260.0,0.10133985]
[1756790442082,0.25568658,110270.0,110260.0,0.33602643]
[1756790444773,0.23568658,110270.0,110260.0,0.33602643]
[1756790446273,0.56568658,110270.0,110260.0,0.33602643]
[1756790446477,0.56568658,110270.0,110260.0,0.38461849]
[1756790446678,0.25568658,110270.0,110260.0,0.38461849]
[1756790447284,0.56568658,110270.0,110260.0,0.33602643]
[1756790447479,0.25568658,110270.0,110260.0,0.38461849]
[1756790448377,0.25568658,110270.0,110260.0,0.14993191]
[1756790448689,0.25568658,110270.0,110260.0,0.38461849]
[1756790449385,0.61568658,110270.0,110260.0,0.38461849]
[1756790449587,1.21117316,110270.0,110260.0,0.11565191]
[1756790449789,1.46117316,110270.0,110260.0,0.01986985]
[1756790449991,1.46117316,110270.0,110250.0,0.07140206]
[1756790450193,1.65981316,110260.0,110250.0,0.07140206]
[1756790450500,2.03981316,110260.0,110250.0,0.07140206]
[1756790450882,1.21017316,110260.0,110250.0,0.09543206]
[1756790451085,2.03981316,110260.0,110250.0,0.13260206]
[1756790451284,2.03981316,110260.0,110250.0,0.13460206]
[1756790451994,2.03981316,110260.0,110250.0,0.13360206]
[1756790452293,2.03981316,110260.0,110250.0,0.13460206]
[1756790452485,2.03981316,110260.0,110250.0,0.08501]
[1756790452794,2.04081316,110260.0,110250.0,0.08401]
[1756790453192,2.04081316,110260.0,110250.0,0.13296101]
[1756790454192,1.68081316,110260.0,110250.0,0.13296101]
[1756790454392,2.01081316,110260.0,110250.0,0.13296101]
[1756790460497,1.68081316,110260.0,110250.0,0.13296101]
[1756790460697,2.01081316,110260.0,110250.0,0.13296101]
[1756790462199,1.68081316,110260.0,110250.0,0.13296101]
[1756790462400,2.00081316,110260.0,110250.0,0.13296101]
[1756790465601,1.17117316,110260.0,110250.0,0.14776101]
[1756790465802,1.76608658,110260.0,110250.0,0.38244759]